bitfinex-derivatives/quotes_BTCF0:USTF0_20251030
["timestamp","ask_amount","ask_price","bid_price","bid_amount"]
[1761859423772,0.05943,107650.0,107640.0,0.19501432]
[1761859423963,0.25378432,107650.0,107640.0,0.32078]
[1761859424163,0.25378432,107650.0,107640.0,0.51513432]
[1761859427673,0.25378432,107650.0,107640.0,0.00066]
[1761859427875,0.25378432,107650.0,107640.0,0.32078]
[1761859428674,0.25378432,107650.0,107640.0,0.51513432]
[1761859430566,0.05943,107650.0,107640.0,0.51513432]
[1761859431872,0.2037308,107660.0,107640.0,0.51447432]
[1761859432068,0.22763338,107660.0,107640.0,0.51447432]
[1761859432971,0.22763338,107660.0,107640.0,0.32012]
[1761859433172,0.22763338,107660.0,107650.0,0.19435432]
[1761859433871,0.22763338,107660.0,107640.0,0.51447432]
[1761859434272,0.22763338,107660.0,107650.0,0.32012]
[1761859434473,0.22963338,107660.0,107650.0,0.32012]
[1761859435173,0.4229877,107660.0,107630.0,0.26101046]
[1761859435369,0.19435432,107650.0,107640.0,0.32012]
[1761859435674,0.19435432,107650.0,107640.0,0.51447432]
[1761859436175,0.19435432,107650.0,107640.0,0.32012]
[1761859436476,0.21819489,107650.0,107640.0,0.32012]
[1761859438571,0.21919489,107650.0,107640.0,0.32012]
[1761859439184,0.19635432,107650.0,107640.0,0.32012]
[1761859439582,0.22019218,107650.0,107640.0,0.32012]
[1761859439986,0.21919218,107650.0,107640.0,0.32012]
[1761859440282,0.22219218,107650.0,107640.0,0.32012]
[1761859440877,0.22119218,107650.0,107640.0,0.32012]
[1761859441183,0.22319218,107650.0,107640.0,0.32012]
[1761859441382,0.4203465,107650.0,107640.0,0.32012]
[1761859441579,1.0203465,107650.0,107620.0,1.56665614]
[1761859441878,0.19435432,107630.0,107620.0,1.69435432]
[1761859442073,0.19435432,107640.0,107620.0,2.01447432]
[1761859442269,0.21818159,107640.0,107620.0,2.01447432]
[1761859444984,0.02382727,107640.0,107630.0,0.19435432]
[1761859445282,0.001,107640.0,107630.0,0.19435432]
[1761859446279,0.002,107640.0,107630.0,0.19435432]
[1761859446986,0.001,107640.0,107630.0,0.19435432]
[1761859447685,0.002,107640.0,107630.0,0.19435432]
[1761859448275,0.2037308,107660.0,107630.0,0.19435432]
[1761859448486,0.22754215,107660.0,107640.0,0.51447432]
[1761859448982,0.19435432,107650.0,107640.0,0.32012]
[1761859449286,0.21816567,107650.0,107640.0,0.32012]
[1761859449888,0.21816567,107650.0,107640.0,0.51447432]
[1761859450987,0.21916567,107650.0,107640.0,0.51447432]
[1761859451190,0.19635432,107650.0,107640.0,0.51447432]
[1761859451390,0.2201681,107650.0,107630.0,0.19435432]
[1761859451588,0.02581378,107650.0,107640.0,0.32012]
[1761859451788,0.2201681,107650.0,107640.0,0.32012]
[1761859453289,0.2191681,107650.0,107640.0,0.32012]
[1761859454190,0.2201681,107650.0,107640.0,0.32012]
[1761859455291,0.22013828,107650.0,107640.0,0.32012]
[1761859461095,0.02581378,107650.0,107640.0,0.32012]
[1761859463397,0.002,107650.0,107640.0,0.32012]
[1761859464092,0.02581948,107650.0,107640.0,0.32012]
[1761859470304,0.02581948,107650.0,107640.0,0.5144445]
[1761859471208,0.002,107650.0,107640.0,0.58098064]
[1761859471408,0.002,107650.0,107640.0,0.58378064]
[1761859471700,0.002,107650.0,107640.0,0.59295747]
[1761859471906,0.2459,107680.0,107640.0,0.88020067]
[1761859472105,0.2697688,107680.0,107650.0,0.1943245]
[1761859472308,0.2697688,107680.0,107660.0,0.5144445]
[1761859472509,0.21938507,107700.0,107670.0,0.1943245]
[1761859472710,0.2432441,107700.0,107680.0,0.32012]
[1761859473010,0.02385903,107700.0,107680.0,0.32012]
[1761859473216,0.03338322,107700.0,107680.0,0.5144445]
[1761859473905,0.03338322,107700.0,107680.0,0.32012]
[1761859474915,0.22770772,107700.0,107680.0,0.32012]
[1761859475298,0.03338322,107700.0,107680.0,0.5144445]
[1761859475505,0.00952419,107700.0,107680.0,0.5144445]
[1761859475709,0.26947434,107710.0,107680.0,0.5144445]
[1761859475916,0.002,107700.0,107680.0,0.1943245]
[1761859476116,0.002,107700.0,107690.0,0.5144045]
[1761859476722,0.002,107700.0,107690.0,0.5172045]
[1761859476917,0.002,107700.0,107690.0,0.1943245]
[1761859477119,0.005,107700.0,107690.0,0.5172445]
[1761859477423,0.005,107700.0,107690.0,0.5144445]
[1761859477613,0.005,107700.0,107690.0,0.1943245]
[1761859477920,0.005,107700.0,107690.0,0.5144445]
[1761859478119,0.007,107700.0,107690.0,0.5144445]
[1761859478320,0.007,107700.0,107690.0,0.1943245]
[1761859478517,0.008,107700.0,107690.0,0.5144445]
[1761859480422,0.003,107700.0,107690.0,0.5144445]
[1761859481523,0.00922136,107710.0,107690.0,0.5144445]
[1761859481718,0.3608,107720.0,107700.0,0.1943245]
[1761859481914,0.3608,107720.0,107710.0,0.32004]
[1761859483023,0.5551245,107720.0,107710.0,0.32004]
[1761859483925,0.56454968,107720.0,107710.0,0.32004]
[1761859484325,0.56754968,107720.0,107710.0,0.32004]
[1761859485017,0.56954968,107720.0,107710.0,0.32004]
[1761859487522,0.37522518,107720.0,107710.0,0.32004]
[1761859487723,0.56954968,107720.0,107710.0,0.32004]
[1761859487925,0.37522518,107720.0,107710.0,0.32004]
[1761859492429,0.39893906,107720.0,107710.0,0.32004]
[1761859494027,0.38951388,107720.0,107710.0,0.5143645]
[1761859494226,0.3658,107720.0,107710.0,0.5143645]
[1761859494822,0.3658,107720.0,107710.0,0.32004]
[1761859495929,0.3658,107720.0,107710.0,0.34124592]
[1761859496226,0.37517772,107720.0,107710.0,0.34124592]
[1761859497326,0.39887623,107720.0,107710.0,0.34124592]
[1761859500631,0.59320073,107720.0,107710.0,0.34124592]
[1761859500829,0.59320073,107720.0,107710.0,0.02120592]
[1761859501035,0.59320073,107720.0,107710.0,0.34112592]
[1761859501329,0.6182613,107720.0,107710.0,0.34112592]
[1761859502828,0.4239368,107720.0,107710.0,0.34112592]
[1761859503032,0.6182613,107720.0,107710.0,0.34112592]
[1761859506228,0.4239368,107720.0,107710.0,0.34112592]
[1761859508141,0.6182613,107720.0,107710.0,0.34112592]
[1761859508730,0.6182613,107720.0,107710.0,0.02120592]
[1761859508930,0.6182613,107720.0,107710.0,0.33848592]
[1761859514335,0.6182613,107720.0,107710.0,0.02120592]
[1761859514531,0.62941482,107720.0,107680.0,0.00914089]
[1761859514736,0.05847755,107710.0,107690.0,0.2948]
[1761859514948,0.1943245,107700.0,107690.0,0.2948]
[1761859515245,0.21802301,107700.0,107690.0,0.31992]
[1761859516049,0.02369851,107700.0,107690.0,0.31992]
[1761859516436,0.21938796,107710.0,107690.0,0.31992]
[1761859516437,0.24308647,107710.0,107690.0,0.31992]
[1761859516747,0.1943245,107700.0,107690.0,0.31992]
[1761859516936,0.21802301,107700.0,107690.0,0.31992]
[1761859517243,0.02469851,107700.0,107690.0,0.31992]
[1761859517544,0.21884213,107700.0,107690.0,0.51506362]
[1761859518146,0.21884213,107700.0,107690.0,0.31992]
[1761859518346,0.21884213,107700.0,107690.0,0.32092]
[1761859519539,0.02469851,107700.0,107690.0,0.32092]
[1761859519743,0.21884213,107700.0,107690.0,0.32092]
[1761859520341,0.21884213,107700.0,107690.0,0.51506362]
[1761859528854,0.21884213,107700.0,107690.0,0.32092]
[1761859530148,0.21884213,107700.0,107690.0,0.51506362]
[1761859530149,0.001,107700.0,107690.0,0.51506362]
[1761859533555,0.001,107700.0,107690.0,0.80488344]
[1761859533856,0.3608,107720.0,107710.0,0.19414362]
[1761859534157,0.38455933,107720.0,107710.0,0.51410362]
[1761859534356,0.3608,107720.0,107710.0,0.80390624]
[1761859535357,0.3608,107720.0,107710.0,0.80490624]
[1761859535860,0.3608,107730.0,107710.0,0.80490624]
[1761859536058,0.3608,107730.0,107720.0,0.38828724]
[1761859536357,0.2456,107730.0,107720.0,1.27808096]
[1761859536656,0.2456,107730.0,107720.0,0.40053151]
[1761859537448,0.24262151,107730.0,107720.0,0.68752563]
[1761859537647,0.02506346,107770.0,107730.0,0.0928419]
[1761859537851,0.34717122,107800.0,107740.0,0.60741232]
[1761859538053,0.19414362,107790.0,107780.0,0.19414362]
[1761859538252,0.1530276,107800.0,107780.0,0.70892724]
[1761859538455,0.1530276,107800.0,107790.0,0.38828724]
[1761859538858,0.1530276,107800.0,107790.0,0.48107754]
[1761859539058,0.1530276,107800.0,107790.0,0.98828724]
[1761859539258,0.1530276,107800.0,107790.0,1.30932724]
[1761859539459,0.1530276,107800.0,107790.0,1.40211744]
[1761859539646,0.1540276,107800.0,107790.0,1.40211744]
[1761859539851,0.1540276,107800.0,107790.0,1.30932724]
[1761859540253,0.1496358,107800.0,107790.0,0.80211744]
[1761859540660,0.1496358,107800.0,107790.0,0.38828724]
[1761859540859,0.1486358,107800.0,107790.0,0.19694362]
[1761859541059,0.1486358,107800.0,107790.0,0.38928724]
[1761859541259,0.1486358,107800.0,107790.0,0.71304724]
[1761859541560,0.1486358,107800.0,107790.0,0.71504724]
[1761859542063,0.1486358,107800.0,107790.0,0.80503744]
[1761859542256,0.1486358,107800.0,107790.0,0.80783744]
[1761859543263,0.1486358,107800.0,107790.0,0.65884134]
[1761859543462,0.1486358,107800.0,107790.0,0.66164134]
[1761859543663,0.1486358,107800.0,107790.0,0.65884134]
[1761859544060,0.1486358,107800.0,107790.0,0.56605114]
[1761859544864,0.1486358,107800.0,107790.0,0.56593114]
[1761859547260,0.1486358,107800.0,107790.0,0.32384]
[1761859547459,0.1486358,107800.0,107790.0,0.3238]
[1761859547761,0.39072694,107800.0,107790.0,0.3238]
[1761859548065,0.39352694,107800.0,107790.0,0.003]
[1761859548366,0.39352694,107800.0,107750.0,0.24209114]
[1761859548665,0.24189114,107790.0,107760.0,0.32084]
[1761859548867,0.24209114,107780.0,107760.0,0.32084]
[1761859549362,0.84209114,107780.0,107760.0,0.32084]
[1761859550356,0.8513544,107780.0,107760.0,0.32084]
[1761859550865,0.8533544,107780.0,107760.0,0.32084]
[1761859551058,0.8553544,107780.0,107760.0,0.32084]
[1761859553955,0.61326326,107780.0,107760.0,0.32084]
[1761859557966,0.01326326,107780.0,107760.0,0.56293114]
[1761859558174,0.2553544,107780.0,107760.0,0.32076]
[1761859558476,0.2553544,107780.0,107750.0,0.3208]
[1761859558477,0.24489114,107770.0,107750.0,0.3208]
[1761859559176,0.0028,107760.0,107750.0,0.3208]
[1761859559378,0.24489114,107770.0,107750.0,0.3208]
[1761859559576,0.26838125,107770.0,107750.0,0.3208]
[1761859559774,0.26558125,107770.0,107750.0,0.3208]
[1761859559970,0.26838125,107770.0,107750.0,0.3208]
[1761859560274,0.26938125,107770.0,107750.0,0.3208]
[1761859560672,0.27038125,107770.0,107750.0,0.3208]
[1761859560873,0.26758125,107770.0,107750.0,0.3208]
[1761859561274,0.24209114,107760.0,107750.0,0.3208]
[1761859561473,0.24209114,107760.0,107710.0,0.02120592]
[1761859561474,0.26840708,107760.0,107710.0,0.02120592]
[1761859561678,0.24489114,107750.0,107710.0,0.02120592]
[1761859561989,0.26560708,107750.0,107720.0,0.32096]
[1761859562487,8.786e-05,107740.0,107720.0,0.32096]
[1761859563077,8.786e-05,107740.0,107720.0,0.56305114]
[1761859563276,0.02361437,107740.0,107720.0,0.56305114]
[1761859563488,8.786e-05,107740.0,107720.0,0.56305114]
[1761859563881,8.786e-05,107740.0,107720.0,0.65590134]
[1761859564084,0.00208786,107740.0,107730.0,0.24209114]
[1761859564391,0.00208786,107740.0,107720.0,0.65590134]
[1761859564883,0.00408786,107740.0,107720.0,0.56305114]
[1761859565280,0.00208786,107740.0,107720.0,0.56305114]
[1761859565481,0.00508786,107740.0,107720.0,0.56305114]
[1761859566291,0.00708786,107740.0,107720.0,0.56305114]
[1761859566991,0.00508786,107740.0,107720.0,0.56305114]
[1761859567190,0.00508786,107740.0,107720.0,0.65590104]
[1761859567387,0.00508786,107740.0,107720.0,0.56305114]
[1761859567591,0.00408786,107740.0,107720.0,0.56305114]
[1761859569197,0.00408786,107740.0,107720.0,0.65869694]
[1761859569497,0.00408786,107740.0,107730.0,0.24209114]
[1761859570387,0.00208786,107740.0,107730.0,0.24209114]
[1761859570592,0.00608786,107740.0,107730.0,0.24209114]
[1761859571190,0.00608786,107740.0,107730.0,0.33493244]
[1761859571899,0.00408786,107740.0,107730.0,0.33493244]
[1761859572100,0.00708786,107740.0,107730.0,0.33493244]
[1761859572599,0.00708786,107740.0,107730.0,0.33773244]
[1761859572989,0.004,107740.0,107730.0,0.93773244]
[1761859573300,0.004,107740.0,107730.0,0.33773244]
[1761859573800,0.003,107740.0,107730.0,0.33873244]
[1761859574003,0.00926326,107780.0,107740.0,0.092824]
[1761859574201,0.02355836,107780.0,107750.0,0.65867484]
[1761859574396,0.2733168,107800.0,107750.0,0.65587484]
[1761859574701,0.47934876,107800.0,107750.0,0.65587484]
[1761859575095,0.48856446,107800.0,107750.0,0.65587484]
[1761859575295,0.001,107780.0,107750.0,0.65587484]
[1761859575493,0.001,107780.0,107760.0,0.24209114]
[1761859575696,0.02455836,107780.0,107770.0,0.321]
[1761859577102,0.02655836,107780.0,107770.0,0.321]
[1761859577304,0.02655836,107780.0,107770.0,0.32096]
[1761859577800,0.02555836,107780.0,107770.0,0.32096]
[1761859578409,0.02955836,107780.0,107770.0,0.32096]
[1761859578700,0.02955836,107780.0,107770.0,0.32092]
[1761859579398,0.62955836,107780.0,107770.0,0.32092]
[1761859579600,0.62955836,107780.0,107770.0,0.32088]
[1761859580197,0.02955836,107780.0,107730.0,0.0928344]
[1761859580398,0.02955836,107780.0,107740.0,0.32088]
[1761859580708,0.03106346,107780.0,107740.0,0.32088]
[1761859580900,0.05462182,107780.0,107740.0,0.32088]
[1761859581800,0.40618083,107760.0,107710.0,0.42738675]
[1761859582002,0.45480265,107760.0,107720.0,0.32104]
[1761859582306,0.02506346,107750.0,107730.0,0.002]
[1761859582489,0.06127755,107750.0,107730.0,0.002]
[1761859582689,0.05142182,107750.0,107730.0,0.002]
[1761859582902,0.05142182,107750.0,107720.0,0.32104]
[1761859583097,0.04862182,107750.0,107720.0,0.32504]
[1761859583292,0.04862182,107750.0,107730.0,0.3212]
[1761859584303,0.05162182,107750.0,107730.0,0.3212]
[1761859584603,0.05442182,107750.0,107730.0,0.3212]
[1761859584799,0.46360265,107750.0,107730.0,0.3212]
[1761859585008,0.40898083,107740.0,107710.0,0.02120592]
[1761859585201,0.04862182,107740.0,107710.0,0.34232592]
[1761859585401,0.02506346,107730.0,107710.0,0.34232592]
[1761859585599,0.04862182,107730.0,107710.0,0.34232592]
[1761859585801,0.02786346,107730.0,107710.0,0.34232592]
[1761859586096,0.05142182,107730.0,107710.0,0.34232592]
[1761859587294,0.02635836,107730.0,107710.0,0.34232592]
[1761859587603,0.02355836,107730.0,107710.0,0.34232592]
[1761859588007,0.45480265,107740.0,107710.0,0.34232592]
[1761859588196,0.001,107730.0,107710.0,0.34232592]
[1761859588504,0.02455836,107730.0,107710.0,0.34232592]
[1761859588702,0.02735836,107730.0,107710.0,0.34232592]
[1761859589402,0.03546971,107730.0,107710.0,0.34232592]
[1761859589804,0.03266971,107730.0,107710.0,0.34232592]
[1761859590004,0.03366971,107730.0,107710.0,0.34232592]
[1761859590703,0.467714,107730.0,107710.0,0.34236592]
[1761859591097,1.064914,107730.0,107710.0,0.02120592]
[1761859591802,1.067714,107730.0,107710.0,0.02120592]
[1761859593006,1.04265054,107730.0,107710.0,0.02120592]
[1761859594498,1.36381054,107730.0,107710.0,0.02120592]
[1761859595400,1.36101054,107730.0,107710.0,0.02120592]
[1761859596503,0.03366971,107730.0,107710.0,0.02120592]
[1761859600611,0.53979448,107730.0,107710.0,0.02120592]
[1761859600811,0.43985054,107730.0,107710.0,0.02120592]
[1761859601104,0.44265054,107730.0,107710.0,0.02120592]
[1761859601310,0.68575054,107730.0,107710.0,0.02120592]
[1761859601502,0.40618083,107720.0,107710.0,0.02120592]
[1761859601704,0.42973919,107720.0,107710.0,0.02120592]
[1761859602008,0.02355836,107720.0,107710.0,0.02120592]
[1761859602305,0.68575054,107730.0,107710.0,0.02120592]
[1761859602812,0.27956971,107730.0,107710.0,0.02120592]
[1761859603009,0.68475054,107730.0,107710.0,0.02120592]
[1761859603206,0.001,107720.0,107710.0,0.02120592]
[1761859603607,0.02463289,107720.0,107710.0,0.02120592]
[1761859605308,0.02363289,107720.0,107710.0,0.02120592]
[1761859608004,0.02463289,107720.0,107710.0,0.02120592]
[1761859608909,0.001,107720.0,107710.0,0.02400592]
[1761859609206,0.001,107720.0,107710.0,0.02120592]
[1761859610099,0.00501,107720.0,107710.0,0.02120592]
[1761859610605,0.02873049,107720.0,107710.0,0.02120592]
[1761859611311,0.00501,107720.0,107710.0,0.02120592]
[1761859611506,0.02875242,107720.0,107710.0,0.02120592]
[1761859616718,0.00501,107720.0,107710.0,0.02120592]
[1761859619713,0.02883554,107720.0,107710.0,0.02120592]
[1761859621016,0.05388104,107720.0,107710.0,0.02120592]
[1761859621616,0.12753866,107720.0,107690.0,0.21432]
[1761859621812,0.05388104,107720.0,107690.0,0.21432]
[1761859622218,0.46006187,107720.0,107690.0,0.21432]
[1761859622825,0.46006187,107720.0,107690.0,0.21832]
[1761859624623,0.45906187,107720.0,107690.0,0.21932]
[1761859626419,0.53351414,107720.0,107690.0,0.21932]
[1761859632935,0.53847414,107720.0,107690.0,0.21932]
[1761859639331,0.24265038,107710.0,107690.0,0.21932]
[1761859639532,0.26647592,107710.0,107690.0,0.21932]
[1761859641329,0.19412053,107700.0,107690.0,0.41344053]
[1761859641833,0.2985783,107720.0,107690.0,0.41344053]
[1761859641834,0.19412053,107710.0,107690.0,0.41344053]
[1761859642130,0.21794833,107710.0,107700.0,0.19412053]
[1761859642331,0.22196833,107710.0,107690.0,0.40944053]
[1761859642533,0.22196833,107710.0,107690.0,0.41344053]
[1761859643531,0.02506721,107730.0,107700.0,0.19412053]
[1761859643833,0.19412053,107720.0,107700.0,0.19412053]
[1761859644133,0.19412053,107720.0,107700.0,0.002]
[1761859644333,0.19412053,107720.0,107710.0,0.19412053]
[1761859645633,0.19512053,107720.0,107710.0,0.19412053]
[1761859645825,0.19512053,107720.0,107690.0,0.3071961]
[1761859646136,0.19512053,107720.0,107700.0,0.19412053]
[1761859646925,0.19512053,107720.0,107690.0,0.3071958]
[1761859647130,0.19512053,107720.0,107700.0,0.19412053]
[1761859647729,0.001,107720.0,107710.0,0.19412053]
[1761859648125,0.44947284,107730.0,107710.0,0.51472053]
[1761859648326,0.20357284,107730.0,107710.0,0.51472053]
[1761859649631,0.20357284,107730.0,107710.0,0.3206]
[1761859649834,0.001,107720.0,107710.0,0.51472053]
[1761859651737,0.19512053,107720.0,107710.0,0.3206]
[1761859651937,0.19512053,107720.0,107710.0,0.51472053]
[1761859652134,0.19412053,107720.0,107710.0,0.3206]
[1761859652937,0.19512053,107720.0,107710.0,0.3206]
[1761859653436,0.19512053,107720.0,107680.0,0.0928822]
[1761859653633,0.19412053,107710.0,107690.0,0.23204]
[1761859653832,0.19512053,107720.0,107680.0,0.06624084]
[1761859654140,0.19412053,107710.0,107700.0,0.32052]
[1761859655447,0.19412053,107710.0,107700.0,0.32252]
[1761859655647,0.21756487,107710.0,107700.0,0.32252]
[1761859662751,0.21756487,107710.0,107700.0,0.51664053]
[1761859662936,0.02344434,107710.0,107700.0,0.51664053]
[1761859663140,0.21756487,107710.0,107700.0,0.51664053]
[1761859664345,0.02344434,107710.0,107700.0,0.51664053]
[1761859665350,0.19412053,107720.0,107700.0,0.51664053]
[1761859665647,0.21756318,107720.0,107700.0,0.51664053]
[1761859666249,0.02344265,107720.0,107710.0,0.19412053]
[1761859666643,0.21756318,107720.0,107700.0,0.51664053]
[1761859667147,0.21756318,107720.0,107700.0,0.51464053]
[1761859667550,0.21856318,107720.0,107700.0,0.51464053]
[1761859668941,0.21856318,107720.0,107700.0,0.51664053]
[1761859669249,0.21756318,107720.0,107700.0,0.51664053]
[1761859670849,0.02344265,107720.0,107700.0,0.60950813]
[1761859671248,0.02344265,107720.0,107710.0,0.19412053]
[1761859672957,0.02444265,107720.0,107700.0,0.60750813]
[1761859673143,0.02444265,107720.0,107700.0,0.51464053]
[1761859673446,0.02444265,107720.0,107700.0,0.32052]
[1761859673751,0.21856318,107720.0,107700.0,0.51464053]
[1761859674451,0.21756318,107720.0,107700.0,0.60750763]
[1761859674952,0.02344265,107720.0,107700.0,0.61230303]
[1761859675251,0.02344265,107720.0,107710.0,0.19412053]
[1761859675845,0.02344265,107720.0,107710.0,0.21532645]
[1761859676652,0.02449333,107720.0,107710.0,0.21532645]
[1761859677453,0.21861386,107720.0,107710.0,0.21532645]
[1761859677649,0.21861386,107720.0,107710.0,0.02120592]
[1761859677854,0.21861386,107720.0,107710.0,0.34148592]
[1761859682646,0.21861386,107720.0,107710.0,0.02120592]
[1761859682846,0.21861386,107720.0,107710.0,0.34148592]
[1761859683553,0.02449333,107720.0,107710.0,0.34148592]
[1761859683749,0.21861386,107720.0,107710.0,0.34148592]
[1761859689557,0.41273439,107720.0,107710.0,0.02120592]
[1761859689858,0.41273439,107720.0,107710.0,0.34148592]
[1761859690858,0.48688961,107720.0,107710.0,0.34148592]
[1761859691752,0.48688961,107720.0,107710.0,0.02120592]
[1761859698359,0.48689873,107720.0,107710.0,0.02120592]
[1761859701256,0.29276428,107720.0,107710.0,0.02120592]
[1761859701862,0.09865767,107720.0,107710.0,0.02120592]
[1761859702061,0.29276428,107720.0,107710.0,0.02120592]
[1761859712073,0.02450245,107720.0,107710.0,0.02120592]
[1761859712478,0.21860906,107720.0,107710.0,0.02120592]
[1761859714473,0.21871636,107720.0,107710.0,0.02120592]
[1761859722682,0.24378201,107720.0,107710.0,0.02120592]
[1761859726380,0.21871636,107720.0,107710.0,0.02120592]
[1761859728090,0.24378201,107720.0,107710.0,0.02120592]
[1761859732894,0.21871636,107720.0,107710.0,0.02120592]
[1761859733085,0.02460975,107720.0,107710.0,0.02120592]
[1761859734696,0.21871636,107720.0,107710.0,0.02120592]
[1761859744709,0.02460975,107720.0,107710.0,0.02120592]
[1761859745011,0.21871636,107720.0,107710.0,0.02120592]
[1761859745900,0.02460975,107720.0,107710.0,0.02120592]
[1761859754313,0.02560975,107720.0,107710.0,0.02120592]
[1761859754808,0.02660975,107720.0,107710.0,0.02120592]
[1761859759709,0.02560975,107720.0,107710.0,0.02120592]
[1761859760917,0.02660975,107720.0,107710.0,0.02120592]
[1761859761509,0.02460975,107720.0,107710.0,0.02120592]
[1761859762109,0.02560975,107720.0,107710.0,0.02120592]
[1761859763419,0.21966461,107720.0,107710.0,0.02120592]
[1761859767517,0.21966461,107720.0,107710.0,0.34140592]
[1761859773013,0.21966461,107720.0,107710.0,0.02120592]
[1761859773312,0.21966461,107720.0,107710.0,0.34136592]
[1761859779028,0.02560975,107720.0,107710.0,0.02120592]
[1761859779325,0.41371947,107720.0,107710.0,0.34136592]
[1761859784124,0.41371947,107720.0,107710.0,0.02120592]
[1761859786322,0.02560975,107720.0,107710.0,0.02120592]
[1761859786525,0.41371947,107720.0,107710.0,0.02120592]
[1761859788234,0.43878512,107720.0,107710.0,0.02120592]
[1761859792232,0.51284381,107720.0,107710.0,0.02120592]
[1761859792832,0.48777816,107720.0,107710.0,0.02120592]
[1761859801442,0.48777816,107720.0,107710.0,0.34132592]
[1761859802145,0.48777816,107720.0,107710.0,0.02120592]
[1761859805748,0.51184381,107720.0,107710.0,0.02120592]
[1761859806049,0.57045381,107720.0,107710.0,0.02120592]
[1761859806247,0.57245381,107720.0,107710.0,0.02120592]
[1761859808549,0.05661,107690.0,107680.0,0.00066]
[1761859808851,0.05661,107690.0,107680.0,0.51483486]
[1761859809255,0.05661,107690.0,107680.0,0.32078]
[1761859809452,0.05661,107690.0,107680.0,0.60772056]
[1761859809653,0.05661,107690.0,107680.0,0.28760056]
[1761859809848,0.05661,107690.0,107680.0,0.60972056]
[1761859810058,0.05661,107690.0,107680.0,0.61072056]
[1761859811154,0.05661,107690.0,107680.0,0.6769614]
[1761859811355,0.05661,107690.0,107680.0,0.3568414]
[1761859811859,0.05661,107690.0,107680.0,0.29060056]
[1761859812252,0.05661,107690.0,107680.0,0.61072056]
[1761859812551,0.05661,107690.0,107680.0,0.51783486]
[1761859813160,0.06702319,107690.0,107680.0,0.19771486]
[1761859813550,0.06702319,107690.0,107680.0,0.51783486]
[1761859813750,0.06702319,107690.0,107680.0,0.19771486]
[1761859813951,0.06702319,107690.0,107680.0,1.11783486]
[1761859814152,0.06702319,107690.0,107680.0,0.79771486]
[1761859814354,0.06702319,107690.0,107680.0,1.11783486]
[1761859814657,0.06702319,107690.0,107680.0,0.79771486]
[1761859814856,0.26107805,107690.0,107680.0,0.003]
[1761859815058,0.28498067,107690.0,107680.0,0.003]
[1761859815263,0.28498067,107690.0,107680.0,0.32312]
[1761859815856,0.28498067,107690.0,107680.0,0.32378]
[1761859819962,0.09092581,107690.0,107680.0,0.51783486]
[1761859820166,0.09092581,107690.0,107680.0,0.61072006]
[1761859820362,0.06702319,107690.0,107680.0,0.61072006]
[1761859821465,0.06702319,107690.0,107680.0,0.51783486]
[1761859821769,0.06702319,107690.0,107680.0,0.61071996]
[1761859823168,0.06702319,107690.0,107680.0,0.51783486]
[1761859824277,0.06702319,107690.0,107680.0,0.61351966]
[1761859824674,0.06702319,107690.0,107680.0,0.4166648]
[1761859824973,0.06702319,107690.0,107680.0,0.61071966]
[1761859825374,0.06702319,107690.0,107680.0,0.4166648]
[1761859830074,0.06702319,107690.0,107680.0,0.32378]
[1761859830274,0.06702319,107690.0,107680.0,0.4166653]
[1761859830571,0.05886,107710.0,107700.0,0.00066]
[1761859830775,0.08280601,107710.0,107700.0,0.32078]
[1761859831678,0.08480601,107710.0,107700.0,0.32078]
[1761859832077,0.27892619,107710.0,107700.0,0.32078]
[1761859832269,0.28941144,107710.0,107700.0,0.32078]
[1761859837377,0.28941144,107710.0,107700.0,0.32008]
[1761859837778,0.04503,107680.0,107670.0,0.28766708]
[1761859837987,0.04503,107680.0,107670.0,0.60774708]
[1761859838574,0.05791,107690.0,107680.0,0.00066]
[1761859839181,0.05791,107690.0,107680.0,0.32074]
[1761859840083,0.05791,107690.0,107680.0,0.32174]
[1761859840295,0.05791,107690.0,107680.0,0.00166]
[1761859840496,0.05791,107690.0,107680.0,0.32174]
[1761859841500,0.05791,107690.0,107680.0,0.00166]
[1761859841697,0.05791,107690.0,107680.0,0.00366]
[1761859841998,0.25203018,107690.0,107680.0,0.32374]
[1761859842298,0.05791,107690.0,107680.0,0.32374]
[1761859843391,0.08187349,107690.0,107680.0,0.32374]
[1761859845289,0.27599367,107690.0,107680.0,0.00366]
[1761859845494,0.27599555,107690.0,107680.0,0.30074]
[1761859846694,0.27599555,107690.0,107680.0,0.00366]
[1761859846899,0.27599555,107690.0,107680.0,0.32374]
[1761859849299,0.05779,107670.0,107660.0,0.00073284]
[1761859849492,0.08175311,107670.0,107660.0,0.00073284]
[1761859849695,0.27587329,107670.0,107660.0,0.00073284]
[1761859850303,0.27587329,107670.0,107660.0,7.284e-05]
[1761859850493,0.08175311,107670.0,107660.0,0.00073284]
[1761859850693,0.27587329,107670.0,107660.0,0.00073284]
[1761859850901,0.27587329,107670.0,107660.0,0.00673284]
[1761859852194,0.27587329,107670.0,107660.0,0.00973284]
[1761859853600,0.08175311,107670.0,107660.0,0.00973284]
[1761859853905,0.27587329,107670.0,107660.0,0.00973284]
[1761859855398,0.25191018,107670.0,107660.0,0.00973284]
[1761859855603,0.0821583,107670.0,107660.0,0.00973284]
[1761859855907,0.27627848,107670.0,107660.0,0.00973284]
[1761859856106,0.27627848,107670.0,107660.0,0.00907284]
[1761859857404,0.25191018,107670.0,107660.0,0.00907284]
[1761859857902,0.44603036,107670.0,107660.0,0.00907284]
[1761859858498,0.04518,107630.0,107620.0,1.5929369]
[1761859858807,0.02311,107630.0,107620.0,1.9130569]
[1761859859007,0.05779,107640.0,107630.0,0.00066]
[1761859859507,0.05786284,107640.0,107630.0,0.60066]
[1761859859809,0.05786284,107640.0,107630.0,0.00066]
[1761859860211,0.06812949,107640.0,107630.0,0.00066]
[1761859860402,0.06812949,107640.0,107630.0,0.00166]
[1761859862406,0.26224967,107640.0,107630.0,0.00166]
[1761859862709,0.26224967,107640.0,107630.0,0.32178]
[1761859862909,0.06812949,107640.0,107630.0,0.32178]
[1761859864002,0.06912949,107640.0,107630.0,0.32178]
[1761859865312,0.07012949,107640.0,107630.0,0.32078]
[1761859867710,0.05986284,107640.0,107630.0,0.4137083]
[1761859867910,0.02518284,107640.0,107630.0,0.60782848]
[1761859868115,0.04725284,107640.0,107630.0,0.60782848]
[1761859868312,0.05986284,107640.0,107630.0,0.4137083]
[1761859869016,0.0699529,107640.0,107630.0,0.32078]
[1761859869511,0.0689529,107640.0,107630.0,0.32078]
[1761859869701,0.05886284,107640.0,107630.0,0.32078]
[1761859869908,0.05786284,107640.0,107630.0,0.4137084]
[1761859872113,0.05786284,107640.0,107630.0,0.32078]
[1761859872715,0.05786284,107640.0,107630.0,1.0137084]
[1761859873017,0.05684284,107640.0,107630.0,1.0137084]
[1761859875008,0.05684284,107640.0,107630.0,0.6935884]